[Event "*** Titled Tuesday Blitz"]
[Site "Chess.com"]
[Date "2018.12.04"]
[Round "7"]
[White "jocmil"]
[Black "AliKa2810"]
[Result "0-1"]
[WhiteElo "2467"]
[BlackElo "2482"]
[TimeControl "180+2"]
[EndTime "14:35:54 PST"]
[Termination "AliKa2810 won by resignation"]

1. d4 {[%clk 0:03:01.9]} 1... Nf6 {[%clk 0:03:00.4]} 2. Nf3 {[%clk 0:03:03.1]}
2... g6 {[%clk 0:03:01.2]} 3. Bf4 {[%clk 0:03:04.6]} 3... Bg7 {[%clk 0:03:02.8]}
4. e3 {[%clk 0:03:06.2]} 4... O-O {[%clk 0:03:04.4]} 5. Nbd2 {[%clk 0:03:07.4]}
5... d6 {[%clk 0:03:06]} 6. h3 {[%clk 0:03:08.5]} 6... Nc6 {[%clk 0:03:07.6]} 7.
Bh2 {[%clk 0:03:07.6]} 7... Nd7 {[%clk 0:03:09.1]} 8. Be2 {[%clk 0:03:06.7]}
8... e5 {[%clk 0:03:10.6]} 9. c3 {[%clk 0:03:05.5]} 9... Qe7 {[%clk 0:03:11]}
10. O-O {[%clk 0:03:05.8]} 10... f5 {[%clk 0:03:05.3]} 11. a4 {[%clk 0:02:58.4]}
11... Nf6 {[%clk 0:02:46.9]} 12. b4 {[%clk 0:02:51.5]} 12... Kh8 {[%clk
0:02:28.3]} 13. b5 {[%clk 0:02:49.9]} 13... Na5 {[%clk 0:02:27.4]} 14. Nc4
{[%clk 0:02:49]} 14... Nxc4 {[%clk 0:02:25.8]} 15. Bxc4 {[%clk 0:02:50.9]} 15...
e4 {[%clk 0:02:24.7]} 16. Nd2 {[%clk 0:02:50.3]} 16... Be6 {[%clk 0:02:22.6]}
17. Qb3 {[%clk 0:02:50.6]} 17... Bxc4 {[%clk 0:02:22.1]} 18. Nxc4 {[%clk
0:02:50.9]} 18... g5 {[%clk 0:02:19.3]} 19. Na5 {[%clk 0:02:48.3]} 19... Rab8
{[%clk 0:02:17.7]} 20. Rae1 {[%clk 0:02:39.9]} 20... Nh5 {[%clk 0:02:15.6]} 21.
f3 {[%clk 0:02:36.2]} 21... exf3 {[%clk 0:02:06.8]} 22. Rxf3 {[%clk 0:02:38.1]}
22... g4 {[%clk 0:02:01.8]} 23. hxg4 {[%clk 0:02:20.3]} 23... fxg4 {[%clk
0:02:02.1]} 24. Rxf8+ {[%clk 0:02:18.8]} 24... Rxf8 {[%clk 0:02:03.7]} 25. Qd5
{[%clk 0:02:17.9]} 25... Qh4 {[%clk 0:01:59.7]} 26. Rf1 {[%clk 0:01:54.2]} 26...
Rxf1+ {[%clk 0:01:59.8]} 27. Kxf1 {[%clk 0:01:56.1]} 27... Qxh2 {[%clk
0:01:56.5]} 28. Qe6 {[%clk 0:01:38.7]} 28... Qh1+ {[%clk 0:01:52]} 29. Kf2
{[%clk 0:01:39]} 29... g3+ {[%clk 0:01:52.3]} 30. Kf3 {[%clk 0:01:38.8]} 30...
Qf1+ {[%clk 0:01:52.4]} 31. Kg4 {[%clk 0:01:35.1]} 31... Nf6+ {[%clk 0:01:28.2]}
32. Kg5 {[%clk 0:01:18]} 32... Qxg2 {[%clk 0:01:18.3]} 0-1

[Event "*** Titled Tuesday Blitz"]
[Site "Chess.com"]
[Date "2018.12.04"]
[Round "7"]
[White "jefferyx"]
[Black "grzechu96"]
[Result "1-0"]
[WhiteElo "2761"]
[BlackElo "2558"]
[TimeControl "180+2"]
[EndTime "14:35:58 PST"]
[Termination "jefferyx won by resignation"]

1. e4 {[%clk 0:03:01.9]} 1... e5 {[%clk 0:02:59.4]} 2. Nf3 {[%clk 0:03:02.9]}
2... Nc6 {[%clk 0:03:00.9]} 3. Bb5 {[%clk 0:03:04.4]} 3... a6 {[%clk 0:03:02.1]}
4. Ba4 {[%clk 0:03:05.4]} 4... Nf6 {[%clk 0:03:03.4]} 5. O-O {[%clk 0:03:06.9]}
5... Be7 {[%clk 0:03:04.7]} 6. Bxc6 {[%clk 0:03:07.3]} 6... dxc6 {[%clk
0:03:05.8]} 7. d3 {[%clk 0:03:08.9]} 7... Nd7 {[%clk 0:03:06.4]} 8. Nbd2 {[%clk
0:03:10.3]} 8... O-O {[%clk 0:03:04.9]} 9. Nc4 {[%clk 0:03:11.8]} 9... f6 {[%clk
0:03:06.1]} 10. Nh4 {[%clk 0:03:13.3]} 10... Kh8 {[%clk 0:03:03.4]} 11. Nf5
{[%clk 0:03:03.7]} 11... Nc5 {[%clk 0:03:04.6]} 12. Nce3 {[%clk 0:02:58.4]}
12... Ne6 {[%clk 0:02:56.1]} 13. Nxe7 {[%clk 0:02:55.1]} 13... Qxe7 {[%clk
0:02:57.1]} 14. b3 {[%clk 0:02:53.4]} 14... c5 {[%clk 0:02:57.4]} 15. Bb2 {[%clk
0:02:54.9]} 15... Nd4 {[%clk 0:02:57.2]} 16. f4 {[%clk 0:02:55.9]} 16... f5
{[%clk 0:02:37.2]} 17. fxe5 {[%clk 0:02:51.6]} 17... Qxe5 {[%clk 0:02:35.9]} 18.
Qh5 {[%clk 0:02:49.6]} 18... Bd7 {[%clk 0:02:00.4]} 19. Kh1 {[%clk 0:02:43.4]}
19... Qe8 {[%clk 0:01:27.1]} 20. Qg5 {[%clk 0:02:15.7]} 20... h6 {[%clk
0:01:20.1]} 21. Qg3 {[%clk 0:02:16.4]} 21... fxe4 {[%clk 0:01:19.4]} 22. Qxc7
{[%clk 0:02:09.8]} 22... Rxf1+ {[%clk 0:01:16.7]} 23. Rxf1 {[%clk 0:02:10.3]}
23... exd3 {[%clk 0:01:18.1]} 24. Qxc5 {[%clk 0:02:06.3]} 24... Qxe3 {[%clk
0:00:52.3]} 25. Bxd4 {[%clk 0:02:07.2]} 25... Qe2 {[%clk 0:00:53.6]} 26. Rg1
{[%clk 0:02:07.7]} 26... d2 {[%clk 0:00:45.7]} 27. Qd6 {[%clk 0:02:08]} 27...
Be6 {[%clk 0:00:43.6]} 28. Bc3 {[%clk 0:01:58.4]} 28... Rc8 {[%clk 0:00:34.7]}
29. Bxd2 {[%clk 0:01:42.2]} 29... Rxc2 {[%clk 0:00:35.8]} 30. Bf4 {[%clk
0:01:44.1]} 30... Bf5 {[%clk 0:00:21.9]} 31. Qf8+ {[%clk 0:01:42.4]} 1-0

[Event "*** Titled Tuesday Blitz"]
[Site "Chess.com"]
[Date "2018.12.04"]
[Round "7"]
[White "Bigfish1995"]
[Black "hypert"]
[Result "1-0"]
[WhiteElo "3001"]
[BlackElo "2403"]
[TimeControl "180+2"]
[EndTime "14:35:59 PST"]
[Termination "Bigfish1995 won by resignation"]

1. d4 {[%clk 0:03:01.2]} 1... Nf6 {[%clk 0:03:00.2]} 2. c4 {[%clk 0:03:01.9]}
2... d6 {[%clk 0:03:01.9]} 3. Nc3 {[%clk 0:03:02.8]} 3... Nbd7 {[%clk
0:03:03.4]} 4. e4 {[%clk 0:03:03.8]} 4... e5 {[%clk 0:03:05]} 5. d5 {[%clk
0:03:01.5]} 5... Nc5 {[%clk 0:03:05.5]} 6. f3 {[%clk 0:03:01.6]} 6... a5 {[%clk
0:03:07.1]} 7. Be3 {[%clk 0:03:01.5]} 7... Be7 {[%clk 0:03:08.7]} 8. Qd2 {[%clk
0:02:57.6]} 8... O-O {[%clk 0:03:09.8]} 9. Nge2 {[%clk 0:02:55.1]} 9... h6
{[%clk 0:03:09.9]} 10. Nc1 {[%clk 0:02:38]} 10... Nh7 {[%clk 0:03:10.5]} 11. Nd3
{[%clk 0:02:38.8]} 11... Bg5 {[%clk 0:02:45.3]} 12. Nxc5 {[%clk 0:02:37.9]}
12... dxc5 {[%clk 0:02:45.1]} 13. O-O-O {[%clk 0:02:20.8]} 13... Bd7 {[%clk
0:02:29.4]} 14. h4 {[%clk 0:02:16.6]} 14... Bxe3 {[%clk 0:02:27.5]} 15. Qxe3
{[%clk 0:02:17.8]} 15... b6 {[%clk 0:02:26.1]} 16. g4 {[%clk 0:02:18.9]} 16...
Qf6 {[%clk 0:02:14.8]} 17. Be2 {[%clk 0:02:16.1]} 17... Rfe8 {[%clk 0:01:55.2]}
18. Rdg1 {[%clk 0:02:16.1]} 18... Qd6 {[%clk 0:01:39.8]} 19. Bd3 {[%clk
0:02:13.8]} 19... Nf8 {[%clk 0:01:40.4]} 20. Ne2 {[%clk 0:02:08.1]} 20... Ng6
{[%clk 0:01:40.3]} 21. h5 {[%clk 0:02:08.6]} 21... Nf4 {[%clk 0:01:41.2]} 22. g5
{[%clk 0:02:05.4]} 22... hxg5 {[%clk 0:01:33.3]} 23. Rxg5 {[%clk 0:02:03.3]}
23... Qh6 {[%clk 0:01:24.1]} 24. Rhg1 {[%clk 0:01:44.7]} 24... Nxe2+ {[%clk
0:01:24.9]} 25. Bxe2 {[%clk 0:01:41.4]} 25... Kh8 {[%clk 0:01:23.2]} 26. Kd2
{[%clk 0:01:39.2]} 26... Rg8 {[%clk 0:01:18.9]} 27. Rxe5 {[%clk 0:01:38.3]}
27... Qxe3+ {[%clk 0:01:12.2]} 28. Kxe3 {[%clk 0:01:40.2]} 28... Rae8 {[%clk
0:01:13.2]} 29. Rxe8 {[%clk 0:01:39]} 29... Rxe8 {[%clk 0:01:15.1]} 30. f4
{[%clk 0:01:37.7]} 30... f6 {[%clk 0:01:16.2]} 31. Kf3 {[%clk 0:01:32.9]} 31...
Kh7 {[%clk 0:01:17.5]} 32. Bd3 {[%clk 0:01:27.9]} 32... Kh6 {[%clk 0:01:08]} 33.
Rg6+ {[%clk 0:01:28]} 33... Kh7 {[%clk 0:01:02.5]} 34. e5 {[%clk 0:01:27.6]}
34... fxe5 {[%clk 0:00:59]} 35. fxe5 {[%clk 0:01:28.5]} 35... Rxe5 {[%clk
0:00:53.2]} 36. Re6+ {[%clk 0:01:26.9]} 1-0

[Event "*** Titled Tuesday Blitz"]
[Site "Chess.com"]
[Date "2018.12.04"]
[Round "7"]
[White "TheMagician"]
[Black "Wolverine_master"]
[Result "1/2-1/2"]
[WhiteElo "2255"]
[BlackElo "2138"]
[TimeControl "180+2"]
[EndTime "14:36:01 PST"]
[Termination "Game drawn by repetition"]

1. d4 {[%clk 0:03:01.9]} 1... d5 {[%clk 0:03:00.3]} 2. c4 {[%clk 0:03:02.3]}
2... c6 {[%clk 0:03:01.7]} 3. Nf3 {[%clk 0:03:01.7]} 3... Nf6 {[%clk 0:03:03.1]}
4. e3 {[%clk 0:03:02.4]} 4... e6 {[%clk 0:03:03]} 5. Nc3 {[%clk 0:02:59.5]} 5...
Nbd7 {[%clk 0:03:03.9]} 6. Bd3 {[%clk 0:02:59.8]} 6... dxc4 {[%clk 0:03:04.4]}
7. Bxc4 {[%clk 0:03:01]} 7... b5 {[%clk 0:03:05.9]} 8. Bd3 {[%clk 0:03:00.8]}
8... a6 {[%clk 0:03:06.8]} 9. O-O {[%clk 0:02:52.5]} 9... Be7 {[%clk 0:03:01.5]}
10. a4 {[%clk 0:02:52.7]} 10... Bb7 {[%clk 0:03:00.6]} 11. Qe2 {[%clk
0:02:50.6]} 11... O-O {[%clk 0:03:00.5]} 12. Rd1 {[%clk 0:02:49.6]} 12... Qc7
{[%clk 0:02:59.3]} 13. Bd2 {[%clk 0:02:46.5]} 13... b4 {[%clk 0:02:59.8]} 14.
Ne4 {[%clk 0:02:47.2]} 14... a5 {[%clk 0:02:56.8]} 15. Rac1 {[%clk 0:02:46.3]}
15... Nxe4 {[%clk 0:02:51.8]} 16. Bxe4 {[%clk 0:02:46.2]} 16... c5 {[%clk
0:02:53]} 17. Bxb7 {[%clk 0:02:43.9]} 17... Qxb7 {[%clk 0:02:53.7]} 18. dxc5
{[%clk 0:02:38.6]} 18... Nxc5 {[%clk 0:02:51.5]} 19. Nd4 {[%clk 0:02:21.5]}
19... Nxa4 {[%clk 0:02:47.5]} 20. b3 {[%clk 0:02:08.8]} 20... Nc5 {[%clk
0:02:45.2]} 21. Rb1 {[%clk 0:01:59.7]} 21... Bf6 {[%clk 0:02:43]} 22. Be1 {[%clk
0:01:55.8]} 22... Bxd4 {[%clk 0:02:39.8]} 23. Rxd4 {[%clk 0:01:55.5]} 23... Rfd8
{[%clk 0:02:37.1]} 24. Rc4 {[%clk 0:01:52.4]} 24... Qd5 {[%clk 0:02:14.2]} 25.
Qc2 {[%clk 0:01:52.1]} 25... Nd7 {[%clk 0:01:36.6]} 26. Rd1 {[%clk 0:01:48.5]}
26... Qb5 {[%clk 0:01:32.9]} 27. h3 {[%clk 0:01:24.8]} 27... Nf6 {[%clk
0:01:28.6]} 28. Rxd8+ {[%clk 0:01:19.1]} 28... Rxd8 {[%clk 0:01:30.5]} 29. Rc5
{[%clk 0:01:20.2]} 29... Qb6 {[%clk 0:01:05.6]} 30. Rc6 {[%clk 0:01:21.3]} 30...
Qb5 {[%clk 0:00:59.5]} 31. Rc5 {[%clk 0:01:22.3]} 31... Qb6 {[%clk 0:01:00.1]}
32. Rc6 {[%clk 0:01:11.4]} 32... Qb5 {[%clk 0:00:55.6]} 33. Rc5 {[%clk
0:01:07.4]} 33... Qb6 {[%clk 0:00:56.1]} 1/2-1/2

[Event "*** Titled Tuesday Blitz"]
[Site "Chess.com"]
[Date "2018.12.04"]
[Round "7"]
[White "vpantev"]
[Black "lucasmito"]
[Result "1-0"]
[WhiteElo "2612"]
[BlackElo "2356"]
[TimeControl "180+2"]
[EndTime "14:36:01 PST"]
[Termination "vpantev won by resignation"]

1. d4 {[%clk 0:03:01.9]} 1... Nf6 {[%clk 0:01:53]} 2. Nf3 {[%clk 0:02:20.4]}
2... g6 {[%clk 0:01:51.9]} 3. Bf4 {[%clk 0:02:21.1]} 3... Bg7 {[%clk 0:01:50.3]}
4. e3 {[%clk 0:02:21.9]} 4... d6 {[%clk 0:01:51.2]} 5. Be2 {[%clk 0:02:22.7]}
5... O-O {[%clk 0:01:52.5]} 6. O-O {[%clk 0:02:23.8]} 6... b6 {[%clk 0:01:52.8]}
7. c4 {[%clk 0:02:24.4]} 7... Bb7 {[%clk 0:01:54.1]} 8. Nc3 {[%clk 0:02:25.6]}
8... Nbd7 {[%clk 0:01:54.5]} 9. Qc2 {[%clk 0:02:26.6]} 9... Nh5 {[%clk 0:01:52]}
10. Bg5 {[%clk 0:02:27]} 10... c5 {[%clk 0:01:50.9]} 11. d5 {[%clk 0:02:27.8]}
11... h6 {[%clk 0:01:47.9]} 12. Bh4 {[%clk 0:02:28.8]} 12... g5 {[%clk
0:01:42.5]} 13. Nd2 {[%clk 0:02:29.4]} 13... Nhf6 {[%clk 0:01:34.9]} 14. Bg3
{[%clk 0:02:29.9]} 14... a6 {[%clk 0:01:32]} 15. a4 {[%clk 0:02:30.2]} 15... Qc7
{[%clk 0:01:02.4]} 16. Rae1 {[%clk 0:02:27.5]} 16... e5 {[%clk 0:01:01.2]} 17.
h4 {[%clk 0:02:27.8]} 17... Rae8 {[%clk 0:00:54.6]} 18. hxg5 {[%clk 0:02:28.4]}
18... hxg5 {[%clk 0:00:56.5]} 19. Bd3 {[%clk 0:02:28.9]} 19... Bc8 {[%clk
0:00:51.1]} 20. f3 {[%clk 0:02:25.6]} 20... Nh5 {[%clk 0:00:46.3]} 21. Bh2
{[%clk 0:02:05]} 21... Nb8 {[%clk 0:00:34.8]} 22. g4 {[%clk 0:02:05]} 22... Nf6
{[%clk 0:00:31.9]} 23. Kg2 {[%clk 0:02:05.7]} 23... Re7 {[%clk 0:00:21.8]} 24.
Bg3 {[%clk 0:02:05.8]} 24... Rfe8 {[%clk 0:00:22.6]} 25. Nde4 {[%clk 0:02:02.3]}
25... Nxe4 {[%clk 0:00:21.9]} 26. Bxe4 {[%clk 0:02:03.2]} 26... Nd7 {[%clk
0:00:21.7]} 27. Rh1 {[%clk 0:01:55.7]} 27... Nf6 {[%clk 0:00:21.6]} 28. Rh2
{[%clk 0:01:53.6]} 28... Nxe4 {[%clk 0:00:21.2]} 29. Nxe4 {[%clk 0:01:54.1]}
29... f5 {[%clk 0:00:22.4]} 30. Nxg5 {[%clk 0:01:53.9]} 30... fxg4 {[%clk
0:00:22.9]} 31. Qh7+ {[%clk 0:01:47.5]} 31... Kf8 {[%clk 0:00:24.2]} 32. fxg4
{[%clk 0:01:42.8]} 32... Bxg4 {[%clk 0:00:25.2]} 33. Rf1+ {[%clk 0:01:43.3]} 1-0

[Event "*** Titled Tuesday Blitz"]
[Site "Chess.com"]
[Date "2018.12.04"]
[Round "7"]
[White "schoolmeester"]
[Black "enriquetejedor"]
[Result "0-1"]
[WhiteElo "2727"]
[BlackElo "2546"]
[TimeControl "180+2"]
[EndTime "14:36:05 PST"]
[Termination "enriquetejedor won by resignation"]

1. e4 {[%clk 0:03:01.9]} 1... d5 {[%clk 0:02:57]} 2. exd5 {[%clk 0:03:01.5]}
2... Qxd5 {[%clk 0:02:57.9]} 3. Nf3 {[%clk 0:03:01.6]} 3... Nf6 {[%clk
0:02:57.4]} 4. Be2 {[%clk 0:02:57.3]} 4... Bg4 {[%clk 0:02:54.7]} 5. O-O {[%clk
0:02:55]} 5... e6 {[%clk 0:02:49.8]} 6. d4 {[%clk 0:02:54.1]} 6... c6 {[%clk
0:02:48.7]} 7. c4 {[%clk 0:02:53.8]} 7... Qd8 {[%clk 0:02:46.8]} 8. Nc3 {[%clk
0:02:53.8]} 8... Be7 {[%clk 0:02:47]} 9. Be3 {[%clk 0:02:41.6]} 9... O-O {[%clk
0:02:47.2]} 10. Qb3 {[%clk 0:02:39.5]} 10... Qb6 {[%clk 0:02:45.1]} 11. Qc2
{[%clk 0:02:19.6]} 11... Qc7 {[%clk 0:02:40]} 12. Rad1 {[%clk 0:02:18.1]} 12...
Nbd7 {[%clk 0:02:40.8]} 13. Rfe1 {[%clk 0:02:17.7]} 13... Rfe8 {[%clk
0:02:40.6]} 14. h3 {[%clk 0:02:16.8]} 14... Bf5 {[%clk 0:02:41.2]} 15. Bd3
{[%clk 0:02:12.5]} 15... Bxd3 {[%clk 0:02:42.2]} 16. Rxd3 {[%clk 0:02:12.8]}
16... Rad8 {[%clk 0:02:44.1]} 17. Red1 {[%clk 0:02:12.5]} 17... a6 {[%clk
0:02:45.3]} 18. Qb3 {[%clk 0:02:12.3]} 18... Qb6 {[%clk 0:02:45.8]} 19. Qxb6
{[%clk 0:02:10.8]} 19... Nxb6 {[%clk 0:02:47.7]} 20. b3 {[%clk 0:02:11.4]} 20...
Nc8 {[%clk 0:02:49]} 21. Ne5 {[%clk 0:02:04.7]} 21... Nd7 {[%clk 0:02:49.9]} 22.
Ne4 {[%clk 0:01:59.3]} 22... f6 {[%clk 0:02:49.9]} 23. Nf3 {[%clk 0:01:58.4]}
23... Kf7 {[%clk 0:02:50.7]} 24. d5 {[%clk 0:01:58.3]} 24... cxd5 {[%clk
0:02:50.9]} 25. cxd5 {[%clk 0:01:59]} 25... exd5 {[%clk 0:02:52.8]} 26. Rxd5
{[%clk 0:01:59.6]} 26... Nf8 {[%clk 0:02:54.3]} 27. Rxd8 {[%clk 0:01:49.4]}
27... Rxd8 {[%clk 0:02:56.2]} 28. Rxd8 {[%clk 0:01:49.8]} 28... Bxd8 {[%clk
0:02:57.3]} 29. Nc5 {[%clk 0:01:50.6]} 29... Nd6 {[%clk 0:02:55.2]} 30. Bf4
{[%clk 0:01:50.9]} 30... Nb5 {[%clk 0:02:49.7]} 31. Nxb7 {[%clk 0:01:51.2]}
31... Be7 {[%clk 0:02:51.2]} 32. Na5 {[%clk 0:01:44.4]} 32... Nc3 {[%clk
0:02:51.3]} 33. Kf1 {[%clk 0:01:31.7]} 33... Nxa2 {[%clk 0:02:51.1]} 34. Nc6
{[%clk 0:01:32.2]} 34... Ne6 {[%clk 0:02:50.1]} 35. Bd2 {[%clk 0:01:31.9]} 35...
Bd6 {[%clk 0:02:49.6]} 36. Ke2 {[%clk 0:01:31.9]} 36... Nf4+ {[%clk 0:02:49.4]}
37. Kd1 {[%clk 0:01:30.5]} 37... Nxg2 {[%clk 0:02:50.3]} 38. Kc2 {[%clk
0:01:31.3]} 38... Nf4 {[%clk 0:02:50.8]} 39. Kb2 {[%clk 0:01:30.9]} 39... Nxh3
{[%clk 0:02:51]} 40. Be1 {[%clk 0:01:27.1]} 40... Nxf2 {[%clk 0:02:50.4]} 41.
Bxf2 {[%clk 0:01:26.3]} 41... Nb4 {[%clk 0:02:51.7]} 42. Nxb4 {[%clk 0:01:22.8]}
42... Bxb4 {[%clk 0:02:53.6]} 43. Kc2 {[%clk 0:01:23.9]} 43... h5 {[%clk
0:02:54.4]} 44. Kd3 {[%clk 0:01:24.4]} 44... g5 {[%clk 0:02:56]} 45. Ke4 {[%clk
0:01:25.5]} 45... Kg6 {[%clk 0:02:57.5]} 46. Nd4 {[%clk 0:01:16.1]} 46... Bc5
{[%clk 0:02:58.4]} 47. Kd5 {[%clk 0:01:14.7]} 47... Bxd4 {[%clk 0:02:58.9]} 48.
Bxd4 {[%clk 0:01:15.7]} 48... h4 {[%clk 0:02:59.4]} 49. Ke4 {[%clk 0:01:15.7]}
49... f5+ {[%clk 0:03:00.6]} 50. Kf3 {[%clk 0:01:16.7]} 50... Kf7 {[%clk
0:03:01.1]} 51. Bb6 {[%clk 0:01:15.2]} 51... g4+ {[%clk 0:02:59.2]} 52. Kf4
{[%clk 0:01:15.5]} 52... h3 {[%clk 0:02:59.8]} 53. Kg3 {[%clk 0:01:16.4]} 53...
f4+ {[%clk 0:02:59.4]} 54. Kh2 {[%clk 0:01:17.3]} 54... Ke6 {[%clk 0:03:00.8]}
55. Bc7 {[%clk 0:01:15.2]} 55... Kf5 {[%clk 0:03:01.5]} 56. Bb8 {[%clk
0:01:15.4]} 56... Ke4 {[%clk 0:03:02.8]} 57. Bc7 {[%clk 0:01:15.5]} 57... Ke3
{[%clk 0:03:03.7]} 58. Bb6+ {[%clk 0:01:11.1]} 58... Ke2 {[%clk 0:03:04.1]} 59.
b4 {[%clk 0:01:06.5]} 59... f3 {[%clk 0:03:04]} 60. Kg3 {[%clk 0:01:07]} 60...
h2 {[%clk 0:03:03.2]} 61. Kxh2 {[%clk 0:01:07.3]} 61... f2 {[%clk 0:03:04.8]}
62. Bxf2 {[%clk 0:01:07.6]} 62... Kxf2 {[%clk 0:03:06.7]} 0-1

[Event "*** Titled Tuesday Blitz"]
[Site "Chess.com"]
[Date "2018.12.04"]
[Round "7"]
[White "GMG"]
[Black "alpasya2009"]
[Result "1-0"]
[WhiteElo "2686"]
[BlackElo "2571"]
[TimeControl "180+2"]
[EndTime "14:36:06 PST"]
[Termination "GMG won on time"]

1. d4 {[%clk 0:03:01.9]} 1... d6 {[%clk 0:03:01.9]} 2. e4 {[%clk 0:03:01.4]}
2... Nf6 {[%clk 0:03:02.9]} 3. f3 {[%clk 0:03:02.1]} 3... e5 {[%clk 0:03:03.9]}
4. d5 {[%clk 0:03:01]} 4... Be7 {[%clk 0:03:03.9]} 5. Be3 {[%clk 0:03:01.2]}
5... O-O {[%clk 0:03:04.6]} 6. Qd2 {[%clk 0:03:01.1]} 6... Nh5 {[%clk
0:03:02.5]} 7. Nc3 {[%clk 0:02:57]} 7... h6 {[%clk 0:03:01.2]} 8. Nge2 {[%clk
0:02:31.1]} 8... Bg5 {[%clk 0:03:00.3]} 9. g3 {[%clk 0:02:29.6]} 9... Bxe3
{[%clk 0:02:52.2]} 10. Qxe3 {[%clk 0:02:31.5]} 10... c5 {[%clk 0:02:51.8]} 11.
dxc6 {[%clk 0:02:26.4]} 11... bxc6 {[%clk 0:02:50.8]} 12. O-O-O {[%clk
0:02:27.1]} 12... Be6 {[%clk 0:02:48.4]} 13. f4 {[%clk 0:02:28.1]} 13... exf4
{[%clk 0:02:33.7]} 14. gxf4 {[%clk 0:02:28.1]} 14... Qa5 {[%clk 0:02:30.4]} 15.
Kb1 {[%clk 0:02:15.1]} 15... Na6 {[%clk 0:02:21.6]} 16. Rg1 {[%clk 0:02:06.4]}
16... Rfb8 {[%clk 0:02:17.9]} 17. f5 {[%clk 0:02:05]} 17... Qa3 {[%clk
0:01:34.8]} 18. b3 {[%clk 0:01:56.3]} 18... Bxb3 {[%clk 0:01:20.8]} 19. cxb3
{[%clk 0:01:58.2]} 19... Rxb3+ {[%clk 0:01:18.9]} 20. axb3 {[%clk 0:02:00.1]}
20... Rb8 {[%clk 0:01:16.5]} 21. Nc1 {[%clk 0:01:56.7]} 21... Nc5 {[%clk
0:01:16.7]} 22. Bc4 {[%clk 0:01:56.3]} 22... d5 {[%clk 0:00:30]} 23. exd5 {[%clk
0:01:54.1]} 23... cxd5 {[%clk 0:00:25.3]} 24. Rxd5 {[%clk 0:01:52.3]} 24... Na6
{[%clk 0:00:10.3]} 25. Bxa6 {[%clk 0:01:49.2]} 25... Qxa6 {[%clk 0:00:09.4]} 26.
Qd3 {[%clk 0:01:48.4]} 26... Qb6 {[%clk 0:00:08.8]} 27. Rd1 {[%clk 0:01:48]}
27... Nf4 {[%clk 0:00:08.9]} 28. Rd8+ {[%clk 0:01:48.1]} 28... Kh7 {[%clk
0:00:05.1]} 29. Rxb8 {[%clk 0:01:48.1]} 29... Qxb8 {[%clk 0:00:05.5]} 30. Qe4
{[%clk 0:01:47.6]} 1-0

[Event "*** Titled Tuesday Blitz"]
[Site "Chess.com"]
[Date "2018.12.04"]
[Round "7"]
[White "BvsN"]
[Black "Vadim_Biliy"]
[Result "1-0"]
[WhiteElo "2289"]
[BlackElo "2138"]
[TimeControl "180+2"]
[EndTime "14:36:26 PST"]
[Termination "BvsN won by checkmate"]

1. d4 {[%clk 0:03:01.9]} 1... d5 {[%clk 0:02:58.8]} 2. c4 {[%clk 0:03:01.9]}
2... e6 {[%clk 0:02:59.9]} 3. Nc3 {[%clk 0:03:02]} 3... Nf6 {[%clk 0:03:01.4]}
4. cxd5 {[%clk 0:03:03]} 4... Nxd5 {[%clk 0:03:01.1]} 5. e4 {[%clk 0:03:04]}
5... Nxc3 {[%clk 0:03:02.2]} 6. bxc3 {[%clk 0:03:05.5]} 6... c5 {[%clk
0:03:03.7]} 7. a3 {[%clk 0:03:06.6]} 7... cxd4 {[%clk 0:03:04.7]} 8. cxd4 {[%clk
0:03:07.7]} 8... Nc6 {[%clk 0:03:04.6]} 9. Nf3 {[%clk 0:03:09.1]} 9... Be7
{[%clk 0:03:00.4]} 10. Bd3 {[%clk 0:03:09.5]} 10... O-O {[%clk 0:03:00.7]} 11.
Bb2 {[%clk 0:03:10.3]} 11... Qa5+ {[%clk 0:02:57.6]} 12. Kf1 {[%clk 0:03:11.4]}
12... b5 {[%clk 0:02:54.5]} 13. d5 {[%clk 0:03:05.7]} 13... Nd8 {[%clk
0:02:32.5]} 14. h4 {[%clk 0:02:38.5]} 14... Nb7 {[%clk 0:02:24.8]} 15. e5 {[%clk
0:02:26.1]} 15... exd5 {[%clk 0:02:17.8]} 16. Bxh7+ {[%clk 0:02:27.1]} 16...
Kxh7 {[%clk 0:02:16.3]} 17. Ng5+ {[%clk 0:02:28.1]} 17... Kg6 {[%clk 0:02:04.5]}
18. Qd3+ {[%clk 0:01:49.5]} 18... Bf5 {[%clk 0:02:03.1]} 19. Qg3 {[%clk
0:01:40.9]} 19... Kh5 {[%clk 0:01:33.3]} 20. Qf3+ {[%clk 0:01:22.8]} 20... Bg4
{[%clk 0:01:27.2]} 21. Qf4 {[%clk 0:01:18.8]} 21... Qa4 {[%clk 0:01:15]} 22. Bd4
{[%clk 0:01:16.2]} 22... Qc4+ {[%clk 0:01:10.1]} 23. Kg1 {[%clk 0:01:15.5]}
23... f5 {[%clk 0:00:51.9]} 24. f3 {[%clk 0:01:10]} 24... Bc5 {[%clk 0:00:40.5]}
25. Rd1 {[%clk 0:01:01.9]} 25... Rac8 {[%clk 0:00:27.5]} 26. Ne6 {[%clk
0:00:52.9]} 26... Bxd4+ {[%clk 0:00:22.5]} 27. Nxd4 {[%clk 0:00:54]} 27... Nc5
{[%clk 0:00:18.4]} 28. Qg5# {[%clk 0:00:54.8]} 1-0